[Event "55th Biel Festival QRT Rapid"]
[Site "Biel"]
[Date "2022.07.12"]
[Round "3.15"]
[White "Galerne Rene"]
[Black "Visakh N R"]
[Result "0-1"]
[ECO "B22"]
[WhiteElo "1719"]
[BlackElo "2391"]
[Annotator "ChessBase"]
[PlyCount "76"]
[EventDate "2022.07.12"]
[EventType "tourn"]
[EventCountry "SUI"]
[SourceTitle "playchess.com"]
[Source "ChessBase"]
[SourceQuality "1"]
[TimeControl "900+5"]

1. e4 {[%emt 0:01:09]} c5 {[%emt 0:01:20]} 2. c3 {[%emt 0:00:04]} Nf6 {[%emt 0:00:15]} 3. e5 {[%emt 0:00:06]} Nd5 {[%emt 0:00:03]} 4. d4 {[%emt 0:00:04]} cxd4 {[%emt 0:00:05]} 5. Nf3 {[%emt 0:00:05]} d6 {[%emt 0:00:32]} 6. Bb5+ {[%emt 0:00:45]} Bd7 {[%emt 0:00:16]} 7. Bxd7+ {[%emt 0:00:32]} Qxd7 {[%emt 0:00:05]} 8. O-O {[%emt 0:01:05]} Nc6 {[%emt 0:00:20]} 9. exd6 {[%emt 0:00:25]} Qxd6 {[%emt 0:00:35]} 10. Nxd4 {[%emt 0:00:10]} Rd8 {[%emt 0:00:06]} 11. Na3 {[%emt 0:01:23]} e6 {[%emt 0:00:27]} 12. Bg5 {[%emt 0:01:13]} Be7 {[%emt 0:00:12]} 13. Bxe7 {[%emt 0:00:23]} Ndxe7 {[%emt 0:00:08]} 14. Qa4 {[%emt 0:01:01]} O-O {[%emt 0:00:16]} 15. Nxc6 {[%emt 0:00:14]} Nxc6 {[%emt 0:00:04]} 16. Rad1 {[%emt 0:00:38]} Qc5 {[%emt 0:00:14]} 17. Rxd8 {[%emt 0:00:35]} Rxd8 {[%emt 0:00:03]} 18. Rd1 {[%emt 0:00:02]} Rd5 {[%emt 0:00:01]} 19. Rxd5 {[%emt 0:00:16]} Qxd5 {[%emt 0:00:03]} 20. Qb3 {[%emt 0:01:32]} Qd7 {[%emt 0:00:13]} 21. h3 {[%emt 0:00:12]} h5 {[%emt 0:00:04]} 22. Qc2 {[%emt 0:00:42]} Qd5 {[%emt 0:00:14]} 23. Qb3 {[%emt 0:00:26]} Qd7 {[%emt 0:00:52]} 24. Qc2 {[%emt 0:00:24]} a6 {[%emt 0:00:01]} 25. Nc4 {[%emt 0:00:13]} Qd5 {[%emt 0:00:16]} 26. b3 {[%emt 0:00:12]} g6 {[%emt 0:00:03]} 27. Ne3 {[%emt 0:00:12]} Qe5 {[%emt 0:00:21]} 28. Qd2 {[%emt 0:00:31]} b5 {[%emt 0:00:22]} 29. c4 {[%emt 0:00:16]} b4 {[%emt 0:00:45]} 30. Nf1 {[%emt 0:01:18]} a5 {[%emt 0:00:11]} 31. Qd7 {[%emt 0:00:41]} Nd4 {[%emt 0:00:10]} 32. Ne3 {[%emt 0:00:16]} Kg7 {[%emt 0:01:29]} 33. Qb7 {[%emt 0:00:21]} Ne2+ {[%emt 0:00:33]} 34. Kf1 {[%emt 0:00:13]} Nc1 {[%emt 0:01:02]} 35. Qb5 {[%emt 0:00:09]} Qa1 {[%emt 0:00:09]} 36. g3 {[%emt 0:00:06]} Nd3+ {[%emt 0:01:03]} 37. Kg2 {[%emt 0:00:02]} Qxa2 {[%emt 0:00:04]} 38. Nd1 {[%emt 0:00:11]} Qe2 {[%emt 0:00:03]} 0-1

[Event "55th Biel Festival QRT Rapid"]
[Site "Biel"]
[Date "2022.07.12"]
[Round "3.16"]
[White "Abdulrahim Salem"]
[Black "Herrera Reyes Jose Antonio"]
[Result "0-1"]
[ECO "B43"]
[WhiteElo "1620"]
[BlackElo "2333"]
[Annotator "ChessBase"]
[PlyCount "72"]
[EventDate "2022.07.12"]
[EventType "tourn"]
[EventCountry "SUI"]
[SourceTitle "playchess.com"]
[Source "ChessBase"]
[SourceQuality "1"]
[TimeControl "900+5"]

1. e4 {[%emt 0:00:47]} c5 {[%emt 0:00:02]} 2. Nf3 {[%emt 0:00:02]} e6 {[%emt 0:00:01]} 3. d4 {[%emt 0:00:02]} cxd4 {[%emt 0:00:02]} 4. Nxd4 {[%emt 0:00:02]} a6 {[%emt 0:00:02]} 5. Nc3 {[%emt 0:00:03]} Qc7 {[%emt 0:00:01]} 6. Be2 {[%emt 0:00:11]} b6 {[%emt 0:00:03]} 7. Be3 {[%emt 0:00:11]} Bb7 {[%emt 0:00:02]} 8. f3 {[%emt 0:00:06]} d6 {[%emt 0:00:02]} 9. Qd2 {[%emt 0:00:11]} Nd7 {[%emt 0:00:03]} 10. O-O {[%emt 0:00:15]} Ngf6 {[%emt 0:00:05]} 11. Kh1 {[%emt 0:00:04]} h5 {[%emt 0:00:03]} 12. Rad1 {[%emt 0:00:10]} Be7 {[%emt 0:00:02]} 13. a4 {[%emt 0:00:29]} h4 {[%emt 0:00:03]} 14. Bd3 {[%emt 0:01:46]} h3 {[%emt 0:00:03]} 15. g3 {[%emt 0:00:02]} Rc8 {[%emt 0:00:16]} 16. Nde2 {[%emt 0:00:10]} Qb8 {[%emt 0:00:08]} 17. Nf4 {[%emt 0:00:14]} Ne5 {[%emt 0:00:05]} 18. Bxb6 {[%emt 0:00:38]} g5 {[%emt 0:00:10]} 19. Nfe2 {[%emt 0:01:05]} g4 {[%emt 0:00:02]} 20. fxg4 {[%emt 0:01:11]} Nc4 {[%emt 0:00:12]} 21. Bxc4 {[%emt 0:00:15]} Rxc4 {[%emt 0:00:01]} 22. Rxf6 {[%emt 0:01:19]} Bxf6 {[%emt 0:01:36]} 23. Qf4 {[%emt 0:01:33]} Be5 {[%emt 0:00:39]} 24. Qf3 {[%emt 0:02:26]} Qa8 {[%emt 0:00:05]} 25. Bd4 {[%emt 0:00:55]} Rf8 {[%emt 0:02:26]} 26. Qd3 {[%emt 0:00:27]} Rc7 {[%emt 0:00:14]} 27. Kg1 {[%emt 0:00:31]} Qc8 {[%emt 0:01:57]} 28. Bb6 {[%emt 0:00:17]} Rc4 {[%emt 0:00:17]} 29. Nd4 {[%emt 0:00:16]} Rb4 {[%emt 0:00:08]} 30. a5 {[%emt 0:00:45]} Rxb2 {[%emt 0:00:02]} 31. Nce2 {[%emt 0:01:00]} Rb4 {[%emt 0:00:20]} 32. Nf3 {[%emt 0:00:04]} Bxe4 {[%emt 0:00:06]} 33. Qd2 {[%emt 0:00:15]} Rxb6 {[%emt 0:00:34]} 34. Nxe5 {[%emt 0:00:05]} Qc5+ {[%emt 0:00:07]} 35. Kf1 {[%emt 0:00:07]} f6 {[%emt 0:00:47]} 36. axb6 {[%emt 0:00:01]} fxe5+ {[%emt 0:00:01]} 0-1

[Event "55th Biel Festival QRT Rapid"]
[Site "Biel"]
[Date "2022.07.12"]
[Round "3.17"]
[White "Schnepp Gunnar"]
[Black "Abdulrahman Mohammad Al Taher"]
[Result "*"]
[ECO "D37"]
[WhiteElo "2297"]
[BlackElo "1779"]
[Annotator "ChessBase"]
[PlyCount "65"]
[EventDate "2022.07.12"]
[EventType "tourn"]
[EventCountry "SUI"]
[SourceTitle "playchess.com"]
[Source "ChessBase"]
[SourceQuality "1"]
[TimeControl "900+5"]

1. d4 {[%emt 0:00:03]} d5 {[%emt 0:00:01]} 2. c4 {[%emt 0:00:01]} e6 {[%emt 0:00:01]} 3. Nc3 {[%emt 0:00:02]} Nf6 {[%emt 0:00:02]} 4. Nf3 {[%emt 0:00:02]} Be7 {[%emt 0:00:02]} 5. e3 {[%emt 0:00:02]} O-O {[%emt 0:00:05]} 6. Bd3 {[%emt 0:00:01]} Nbd7 {[%emt 0:00:38]} 7. O-O {[%emt 0:00:06]} dxc4 {[%emt 0:00:03]} 8. Bxc4 {[%emt 0:00:02]} c5 {[%emt 0:00:04]} 9. Qe2 {[%emt 0:00:03]} a6 {[%emt 0:00:18]} 10. a4 {[%emt 0:00:02]} cxd4 {[%emt 0:00:07]} 11. exd4 {[%emt 0:00:02]} Nb6 {[%emt 0:00:14]} 12. Bd3 {[%emt 0:00:02]} Nbd5 {[%emt 0:00:55]} 13. Rd1 {[%emt 0:01:22]} Bd7 {[%emt 0:02:29]} 14. Ne5 {[%emt 0:00:07]} Rc8 {[%emt 0:00:03]} 15. Bd2 {[%emt 0:02:28]} Bc6 {[%emt 0:01:23]} 16. Nxc6 {[%emt 0:04:09]} Rxc6 {[%emt 0:00:05]} 17. Rac1 {[%emt 0:00:08]} Nb4 {[%emt 0:01:10]} 18. Bb1 {[%emt 0:02:27]} Qxd4 {[%emt 0:00:52]} 19. Be3 {[%emt 0:01:04]} Qh4 {[%emt 0:02:13]} 20. Rd4 {[%emt 0:00:14]} Qh5 {[%emt 0:01:28]} 21. Qxh5 {[%emt 0:00:02]} Nxh5 {[%emt 0:00:05]} 22. Rd7 {[%emt 0:00:02]} Bc5 {[%emt 0:00:28]} 23. Bxc5 {[%emt 0:00:10]} Rxc5 {[%emt 0:00:01]} 24. Rxb7 {[%emt 0:00:01]} Nd5 {[%emt 0:00:20]} 25. Bd3 {[%emt 0:00:52]} a5 {[%emt 0:00:43]} 26. g3 {[%emt 0:00:06]} Nhf6 {[%emt 0:00:08]} 27. Rc2 {[%emt 0:00:33]} Nb4 {[%emt 0:01:38]} 28. Rd2 {[%emt 0:00:04]} g6 {[%emt 0:00:06]} 29. Bf1 {[%emt 0:00:19]} Rfc8 {[%emt 0:00:12]} 30. h3 {[%emt 0:00:31]} Kg7 {[%emt 0:00:10]} 31. Rd6 {[%emt 0:00:10]} R8c7 {[%emt 0:00:17]} 32. Rxc7 {[%emt 0:00:18]} Rxc7 {[%emt 0:00:01]} 33. Rd8 {[%emt 0:00:05]} *

[Event "55th Biel Festival QRT Rapid"]
[Site "Biel"]
[Date "2022.07.12"]
[Round "3.19"]
[White "Tureshbayev Anuar"]
[Black "Unuk Laura"]
[Result "0-1"]
[ECO "B07"]
[WhiteElo "1567"]
[BlackElo "2180"]
[Annotator "ChessBase"]
[PlyCount "20"]
[EventDate "2022.07.12"]
[EventType "tourn"]
[EventCountry "SUI"]
[SourceTitle "playchess.com"]
[Source "ChessBase"]
[SourceQuality "1"]
[TimeControl "900+5"]

1. d4 {[%emt 0:00:03]} Nf6 {[%emt 0:00:06]} 2. Bf4 {[%emt 0:00:01]} d6 {[%emt 0:00:20]} 3. Nc3 {[%emt 0:00:05]} g6 {[%emt 0:00:06]} 4. e4 {[%emt 0:00:01]} Bg7 {[%emt 0:00:02]} 5. Qd2 {[%emt 0:00:04]} O-O {[%emt 0:00:33]} 6. O-O-O {[%emt 0:00:11]} c6 {[%emt 0:00:37]} 7. f3 {[%emt 0:00:03]} b5 {[%emt 0:00:02]} 8. Bh6 {[%emt 0:00:05]} Qa5 {[%emt 0:00:55]} 9. h4 {[%emt 0:00:07]} b4 {[%emt 0:02:06]} 10. Nb1 {[%emt 0:00:03]} Qxa2 {[%emt 0:05:31]} 0-1

[Event "55th Biel Festival QRT Rapid"]
[Site "Biel"]
[Date "2022.07.12"]
[Round "3.20"]
[White "Raja Harshit"]
[Black "Rau Stefan"]
[Result "1-0"]
[ECO "B11"]
[WhiteElo "2164"]
[BlackElo "1559"]
[Annotator "ChessBase"]
[PlyCount "63"]
[EventDate "2022.07.12"]
[EventType "tourn"]
[EventCountry "SUI"]
[SourceTitle "playchess.com"]
[Source "ChessBase"]
[SourceQuality "1"]
[TimeControl "900+5"]

1. e4 {[%emt 0:02:01]} c6 {[%emt 0:00:03]} 2. Nf3 {[%emt 0:00:04]} d5 {[%emt 0:00:02]} 3. Nc3 {[%emt 0:00:02]} dxe4 {[%emt 0:00:11]} 4. Nxe4 {[%emt 0:00:03]} Nf6 {[%emt 0:00:01]} 5. Qe2 {[%emt 0:00:02]} Nxe4 {[%emt 0:00:51]} 6. Qxe4 {[%emt 0:00:02]} e6 {[%emt 0:00:45]} 7. d4 {[%emt 0:00:05]} Be7 {[%emt 0:00:20]} 8. Bd3 {[%emt 0:00:04]} Nd7 {[%emt 0:00:10]} 9. Qg4 {[%emt 0:00:09]} Bf6 {[%emt 0:00:44]} 10. h4 {[%emt 0:00:12]} Nf8 {[%emt 0:00:18]} 11. h5 {[%emt 0:00:28]} h6 {[%emt 0:00:55]} 12. Bd2 {[%emt 0:00:10]} Bd7 {[%emt 0:00:56]} 13. O-O-O {[%emt 0:00:11]} Qb6 {[%emt 0:00:25]} 14. Ne5 {[%emt 0:00:05]} Bxe5 {[%emt 0:01:57]} 15. dxe5 {[%emt 0:00:03]} Rg8 {[%emt 0:00:13]} 16. Bxh6 {[%emt 0:00:12]} O-O-O {[%emt 0:00:52]} 17. Bxg7 {[%emt 0:00:11]} Qxf2 {[%emt 0:00:58]} 18. h6 {[%emt 0:00:04]} Ng6 {[%emt 0:00:46]} 19. Bxg6 {[%emt 0:00:06]} fxg6 {[%emt 0:00:02]} 20. Bf6 {[%emt 0:00:26]} Rdf8 {[%emt 0:01:16]} 21. h7 {[%emt 0:00:10]} Rh8 {[%emt 0:00:20]} 22. Bxh8 {[%emt 0:00:04]} Rxh8 {[%emt 0:00:05]} 23. Qg5 {[%emt 0:00:08]} Qf7 {[%emt 0:00:30]} 24. Rdf1 {[%emt 0:00:11]} Qg7 {[%emt 0:00:16]} 25. Qh6 {[%emt 0:00:04]} Qxe5 {[%emt 0:00:54]} 26. Rf8+ {[%emt 0:00:02]} Rxf8 {[%emt 0:00:04]} 27. Qxf8+ {[%emt 0:00:04]} Kc7 {[%emt 0:00:22]} 28. h8=Q {[%emt 0:00:21]} Qd5 {[%emt 0:01:22]} 29. Qd8+ {[%emt 0:00:09]} Kd6 {[%emt 0:00:09]} 30. Qhf8+ {[%emt 0:00:04]} Ke5 {[%emt 0:00:12]} 31. Qdf6+ {[%emt 0:00:03]} Ke4 {[%emt 0:00:11]} 32. Re1# {[%emt 0:00:02]} 1-0

[Event "55th Biel Festival QRT Rapid"]
[Site "Biel"]
[Date "2022.07.12"]
[Round "3.21"]
[White "Sahithi Varshini M"]
[Black "Schweizer Simon"]
[Result "*"]
[ECO "C55"]
[WhiteElo "1392"]
[BlackElo "2145"]
[Annotator "ChessBase"]
[PlyCount "75"]
[EventDate "2022.07.12"]
[EventType "tourn"]
[EventCountry "SUI"]
[SourceTitle "playchess.com"]
[Source "ChessBase"]
[SourceQuality "1"]
[TimeControl "900+5"]

1. e4 {[%emt 0:00:08]} e5 {[%emt 0:00:06]} 2. Nf3 {[%emt 0:00:05]} Nc6 {[%emt 0:00:02]} 3. Bc4 {[%emt 0:00:03]} Nf6 {[%emt 0:00:02]} 4. d3 {[%emt 0:00:01]} Be7 {[%emt 0:00:02]} 5. O-O {[%emt 0:00:05]} O-O {[%emt 0:00:02]} 6. Nc3 {[%emt 0:00:01]} d6 {[%emt 0:00:02]} 7. a4 {[%emt 0:00:38]} h6 {[%emt 0:00:26]} 8. Bd2 {[%emt 0:00:05]} Kh8 {[%emt 0:00:07]} 9. h3 {[%emt 0:00:55]} Ng8 {[%emt 0:00:03]} 10. g4 {[%emt 0:01:29]} Be6 {[%emt 0:00:12]} 11. Kg2 {[%emt 0:00:29]} Nf6 {[%emt 0:00:44]} 12. Bxe6 {[%emt 0:00:19]} fxe6 {[%emt 0:00:04]} 13. g5 {[%emt 0:00:03]} Ng8 {[%emt 0:00:07]} 14. Nh4 {[%emt 0:00:17]} Kh7 {[%emt 0:00:54]} 15. Nf3 {[%emt 0:02:24]} Qe8 {[%emt 0:01:45]} 16. Ne2 {[%emt 0:00:08]} Bd8 {[%emt 0:01:40]} 17. Ng3 {[%emt 0:00:15]} Nce7 {[%emt 0:00:01]} 18. d4 {[%emt 0:00:47]} Ng6 {[%emt 0:00:24]} 19. dxe5 {[%emt 0:00:04]} dxe5 {[%emt 0:00:01]} 20. gxh6 {[%emt 0:01:22]} gxh6 {[%emt 0:00:02]} 21. Ra3 {[%emt 0:00:05]} Be7 {[%emt 0:00:01]} 22. Rb3 {[%emt 0:00:11]} Qf7 {[%emt 0:00:22]} 23. Kh1 {[%emt 0:01:37]} b6 {[%emt 0:00:22]} 24. Nh2 {[%emt 0:00:05]} Rad8 {[%emt 0:00:16]} 25. Qe2 {[%emt 0:00:32]} Bd6 {[%emt 0:01:26]} 26. Nh5 {[%emt 0:00:25]} Qe8 {[%emt 0:00:39]} 27. Rg3 {[%emt 0:00:02]} Nf4 {[%emt 0:00:22]} 28. Bxf4 {[%emt 0:00:14]} exf4 {[%emt 0:00:01]} 29. Rg7+ {[%emt 0:00:02]} Kh8 {[%emt 0:00:06]} 30. Qg4 {[%emt 0:00:44]} Be5 {[%emt 0:00:18]} 31. Rg1 {[%emt 0:00:09]} Rd7 {[%emt 0:00:50]} 32. Rg6 {[%emt 0:00:03]} Re7 {[%emt 0:00:58]} 33. b3 {[%emt 0:00:00]} f3 {[%emt 0:00:36]} 34. Nxf3 {[%emt 0:00:09]} Bc3 {[%emt 0:00:04]} 35. Nh4 {[%emt 0:00:06]} Qf7 {[%emt 0:00:14]} 36. f4 {[%emt 0:00:06]} c5 {[%emt 0:00:22]} 37. e5 {[%emt 0:00:04]} Qe8 {[%emt 0:00:40]} 38. Rxe6 {[%emt 0:00:20]} *

[Event "55th Biel Festival QRT Rapid"]
[Site "Biel"]
[Date "2022.07.12"]
[Round "3.22"]
[White "Radt Volker"]
[Black "Hari Charan Sai Kalluri"]
[Result "*"]
[ECO "D10"]
[WhiteElo "2033"]
[BlackElo "1351"]
[Annotator "ChessBase"]
[PlyCount "47"]
[EventDate "2022.07.12"]
[EventType "tourn"]
[EventCountry "SUI"]
[SourceTitle "playchess.com"]
[Source "ChessBase"]
[SourceQuality "1"]
[TimeControl "900+5"]

1. d4 {[%emt 0:00:02]} d5 {[%emt 0:04:01]} 2. c4 {[%emt 0:00:01]} c6 {[%emt 0:00:02]} 3. cxd5 {[%emt 0:00:03]} cxd5 {[%emt 0:00:01]} 4. Nc3 {[%emt 0:00:06]} Nf6 {[%emt 0:00:06]} 5. Bf4 {[%emt 0:00:02]} a6 {[%emt 0:00:11]} 6. e3 {[%emt 0:00:09]} Nc6 {[%emt 0:00:02]} 7. Rc1 {[%emt 0:00:13]} Qb6 {[%emt 0:00:23]} 8. Bd3 {[%emt 0:01:31]} Qxb2 {[%emt 0:01:06]} 9. Nge2 {[%emt 0:00:11]} e6 {[%emt 0:00:30]} 10. O-O {[%emt 0:00:17]} Qb6 {[%emt 0:00:36]} 11. Na4 {[%emt 0:01:10]} Qd8 {[%emt 0:00:49]} 12. Qb3 {[%emt 0:01:18]} Nh5 {[%emt 0:02:15]} 13. Nb6 {[%emt 0:05:00]} Nxf4 {[%emt 0:00:18]} 14. Nxa8 {[%emt 0:01:35]} Nxd3 {[%emt 0:01:14]} 15. Rc3 {[%emt 0:01:35]} Ndb4 {[%emt 0:01:41]} 16. a3 {[%emt 0:00:12]} a5 {[%emt 0:00:15]} 17. axb4 {[%emt 0:00:18]} Bxb4 {[%emt 0:00:02]} 18. Rc2 {[%emt 0:02:07]} Bd7 {[%emt 0:00:04]} 19. Ra1 {[%emt 0:00:11]} O-O {[%emt 0:00:17]} 20. Nc1 {[%emt 0:00:27]} Qxa8 {[%emt 0:00:27]} 21. Nd3 {[%emt 0:00:02]} Bd6 {[%emt 0:00:06]} 22. Nc5 {[%emt 0:00:03]} Bxc5 {[%emt 0:00:03]} 23. Rxc5 {[%emt 0:00:02]} Qa6 {[%emt 0:00:24]} 24. Qb2 {[%emt 0:00:30]} *